bitfinex/quotes_SOLUSD_20250522
["timestamp","ask_amount","ask_price","bid_price","bid_amount"]
[1747887597492,5.65738854,176.76,176.75,14.25993386]
[1747887598016,8.86658008,176.77,176.75,14.25993386]
[1747887598210,8.86658008,176.77,176.76,14.25993386]
[1747887599304,5.65631988,176.8,176.76,14.25993386]
[1747887599518,5.65631988,176.8,176.79,14.25993386]
[1747887599714,59.89799998,176.83,176.79,14.25993386]
[1747887599715,5.6556405,176.82,176.79,14.25993386]
[1747887599927,5.6556405,176.82,176.8,14.25993386]
[1747887600506,5.65450947,176.85,176.81,14.25993386]
[1747887600722,5.65450947,176.85,176.84,14.25993386]
[1747887601234,5.65323082,176.89,176.84,14.25993386]
[1747887601431,5.65323082,176.89,176.87,14.25993386]
[1747887601637,5.65323082,176.89,176.79,6.6474]
[1747887601930,14.25993386,176.86,176.81,14.25993386]
[1747887602301,18.64964886,176.88,176.81,14.25993386]
[1747887602500,14.25993386,176.85,176.8,14.25993386]
[1747887603225,5.65482922,176.84,176.8,14.25993386]
[1747887603725,5.65482922,176.84,176.8,22.36120426]
[1747887604033,19.79190228,176.84,176.8,22.36120426]
[1747887605917,18.64964886,176.86,176.8,22.36120426]
[1747887606108,22.36120426,176.85,176.8,22.36120426]
[1747887606309,22.36120426,176.85,176.78,26.0]
[1747887606310,41.01085312,176.86,176.81,22.36120426]
[1747887606510,18.64964886,176.86,176.81,22.36120426]
[1747887606705,41.01085312,176.86,176.81,22.36120426]
[1747887607115,5.65387007,176.87,176.85,22.36120426]
[1747887607307,5.65195274,176.93,176.83,0.14216157]
[1747887607713,5.65195274,176.93,176.88,22.36120426]
[1747887608110,19.78193139,176.93,176.88,22.36120426]
[1747887608312,19.78193139,176.93,176.89,22.36120426]
[1747887609032,5.65195274,176.93,176.9,22.36120426]
[1747887609212,42.14303887,176.93,176.85,32.6348]
[1747887609414,42.14303887,176.93,176.87,22.36120426]
[1747887609723,42.14303887,176.93,176.88,22.36120426]
[1747887609929,19.78183461,176.93,176.89,22.36120426]
[1747887610127,19.78183461,176.93,176.85,32.6348]
[1747887610128,5.65195274,176.93,176.85,32.6348]
[1747887610320,19.78183461,176.93,176.89,22.36120426]
[1747887610928,5.65195274,176.93,176.89,22.36120426]
[1747887611329,28.013157,176.93,176.87,22.36120426]
[1747887611513,42.14303887,176.93,176.88,22.36120426]
[1747887611713,19.78183461,176.93,176.89,22.36120426]
[1747887612114,19.78183461,176.93,176.9,22.36120426]
[1747887612434,19.78183461,176.93,176.89,22.36120426]
[1747887612806,19.78183461,176.93,176.85,6.6348]
[1747887613132,22.36120426,176.92,176.87,22.36120426]
[1747887613325,19.78183461,176.93,176.89,22.36120426]
[1747887613516,19.78183461,176.93,176.9,22.36120426]
[1747887614234,5.65163332,176.94,176.85,26.14216157]
[1747887614414,5.65163332,176.94,176.9,22.36120426]
[1747887614618,19.78071662,176.94,176.89,22.36120426]
[1747887615224,19.78071662,176.94,176.9,22.36120426]
[1747887615635,19.78071662,176.94,176.89,22.36120426]
[1747887615818,19.78071662,176.94,176.86,26.0]
[1747887616015,19.78071662,176.94,176.89,22.36120426]
[1747887616339,19.78071662,176.94,176.9,22.36120426]
[1747887616738,19.78071662,176.94,176.8,22.36120426]
[1747887616922,22.36120426,176.92,176.82,34.08216157]
[1747887617117,19.78071662,176.94,176.85,26.0]
[1747887617442,42.14192088,176.94,176.89,22.36120426]
[1747887617653,19.78071662,176.94,176.9,22.36120426]
[1747887618154,42.14192088,176.94,176.86,1.649]
[1747887618450,67.01085312,176.93,176.81,8.2003]
[1747887618653,22.36120426,176.84,176.77,7.87986157]
[1747887618941,26.0,176.87,176.78,22.36120426]
[1747887618942,22.36120426,176.83,176.78,22.36120426]
[1747887619157,22.36120426,176.85,176.8,22.36120426]
[1747887619946,22.36120426,176.84,176.79,22.36120426]
[1747887620131,22.36120426,176.84,176.77,7.7377]
[1747887620338,22.36120426,176.84,176.79,22.36120426]
[1747887620339,5.65514901,176.83,176.79,22.36120426]
[1747887620524,5.65514901,176.83,176.77,7.7377]
[1747887620730,5.65514901,176.83,176.8,22.36120426]
[1747887621245,5.65514901,176.83,176.79,48.36120426]
[1747887621626,5.65514901,176.83,176.81,22.36120426]
[1747887622234,5.65514901,176.83,176.8,48.36120426]
[1747887622437,5.65482922,176.84,176.8,48.36120426]
[1747887622840,28.01603348,176.84,176.8,26.0]
[1747887623037,5.65482922,176.84,176.8,26.0]
[1747887623339,5.65482922,176.84,176.79,22.36120426]
[1747887623340,19.79190228,176.84,176.79,22.36120426]
[1747887623933,42.15310654,176.84,176.79,22.36120426]
[1747887624119,19.79190228,176.84,176.79,22.36120426]
[1747887624547,5.65482922,176.84,176.8,22.36120426]
[1747887624864,5.65482922,176.84,176.82,22.36120426]
[1747887625027,5.65482922,176.84,176.8,48.36120426]
[1747887625229,5.65482922,176.84,176.79,22.36120426]
[1747887625540,19.79190228,176.84,176.76,26.0]
[1747887625742,19.79190228,176.84,176.78,22.36120426]
[1747887626031,42.15310654,176.84,176.76,26.0]
[1747887626235,42.15310654,176.84,176.78,22.36120426]
[1747887626560,42.15870411,176.79,176.72,22.36120426]
[1747887626847,22.36120426,176.75,176.7,22.36120426]
[1747887627022,33.92,176.78,176.7,22.36120426]
[1747887627220,56.28120426,176.78,176.72,22.36120426]
[1747887627420,22.36120426,176.77,176.72,22.36120426]
[1747887627623,14.20301757,176.77,176.72,14.20301757]
[1747887627849,48.12301757,176.78,176.73,14.20301757]
[1747887628439,53.78005059,176.78,176.73,14.20301757]
[1747887628946,14.20301757,176.76,176.71,14.20301757]
[1747887629152,14.20301757,176.76,176.7,40.20301757]
[1747887629532,14.20301757,176.76,176.71,14.20301757]
[1747887629848,22.38144673,176.77,176.72,22.38144673]
[1747887630046,61.95847975,176.78,176.72,22.38144673]
[1747887630350,28.03847975,176.78,176.72,22.38144673]
[1747887630854,22.38144673,176.77,176.71,22.38144673]
[1747887631152,22.38144673,176.77,176.69,26.0]
[1747887631322,22.38144673,176.76,176.7,48.38144673]
[1747887631529,5.65703302,176.78,176.71,22.38144673]
[1747887631729,22.38144673,176.77,176.71,22.38144673]
[1747887631949,22.38144673,176.76,176.7,48.38144673]
[1747887632138,22.38144673,176.75,176.7,48.38144673]
[1747887632927,5.65802874,176.74,176.7,48.38144673]
[1747887634330,5.65802874,176.74,176.69,26.0]
[1747887634631,5.65802874,176.74,176.68,48.38144673]
[1747887634840,22.38144673,176.73,176.68,48.38144673]
[1747887635039,5.65866908,176.72,176.65,8.1376]
[1747887635238,28.04011581,176.72,176.67,48.38144673]
[1747887635864,28.04011581,176.72,176.67,22.38144673]
[1747887636032,22.38144673,176.71,176.62,5.661604]
[1747887636231,22.38144673,176.71,176.66,22.38144673]
[1747887636431,5.65866908,176.72,176.68,22.38144673]
[1747887637249,28.04011581,176.72,176.67,22.38144673]
[1747887637547,28.04011581,176.72,176.66,22.38144673]
[1747887637748,22.38144673,176.71,176.66,22.38144673]
[1747887638250,22.38144673,176.71,176.65,26.0]
[1747887638515,22.38144673,176.71,176.66,22.38144673]
[1747887638952,22.38144673,176.7,176.65,48.38144673]
[1747887639154,5.65962986,176.69,176.65,48.38144673]
[1747887639460,5.65962986,176.69,176.64,22.38144673]
[1747887640461,5.65962986,176.69,176.65,22.38144673]
[1747887641358,5.65962986,176.69,176.64,26.0]
[1747887641359,28.04107659,176.69,176.64,26.0]
[1747887641563,5.65962986,176.69,176.65,22.38144673]
[1747887642955,5.65866908,176.72,176.68,22.38144673]
[1747887643278,5.65800814,176.75,176.71,22.38144673]
[1747887643499,39.61800814,176.75,176.7,22.38144673]
[1747887643656,61.99945487,176.75,176.7,22.38144673]
[1747887643856,22.38144673,176.74,176.69,22.38144673]
[1747887644057,22.38144673,176.74,176.67,26.0]
[1747887644257,22.38144673,176.74,176.69,22.38144673]
[1747887645161,61.99945487,176.75,176.7,22.38144673]
[1747887645588,39.61800814,176.75,176.7,22.38144673]
[1747887645787,61.99945487,176.75,176.7,22.38144673]
[1747887647288,39.61800814,176.75,176.71,22.38144673]
[1747887647880,5.65800814,176.75,176.7,22.38144673]
[1747887648076,28.03945487,176.75,176.67,26.0]
[1747887648274,22.38144673,176.73,176.68,22.38144673]
[1747887649275,22.38144673,176.74,176.69,22.38144673]
[1747887649479,5.65834889,176.73,176.69,22.38144673]
[1747887649670,5.65834889,176.73,176.69,14.20778637]
[1747887649991,19.86613526,176.73,176.68,14.20778637]
[1747887650673,14.20778637,176.71,176.64,26.0]
[1747887650877,14.20778637,176.7,176.65,14.20778637]
[1747887651274,48.16778637,176.71,176.66,14.20778637]
[1747887651790,5.65930956,176.7,176.66,14.20778637]
[1747887653594,14.20778637,176.68,176.61,8.1228]
[1747887653790,5.66027056,176.67,176.64,14.20778637]
[1747887653989,14.20778637,176.7,176.65,14.20778637]
[1747887654165,33.96,176.71,176.67,14.20778637]
[1747887654371,33.96,176.71,176.7,14.20778637]
[1747887654594,39.61802874,176.74,176.7,14.20778637]
[1747887656278,14.20778637,176.73,176.67,14.20778637]
[1747887656668,14.20778637,176.73,176.63,26.0]
[1747887656872,14.20778637,176.72,176.67,14.20778637]
[1747887657072,14.20778637,176.73,176.67,14.20778637]
[1747887657295,14.20778637,176.73,176.68,14.20778637]
[1747887657569,53.76310059,176.74,176.68,14.20778637]
[1747887657770,5.65866908,176.72,176.68,14.20778637]
[1747887659070,14.20778637,176.71,176.61,8.1228]
[1747887659269,14.20778637,176.69,176.61,8.1228]
[1747887659476,14.20778637,176.68,176.63,14.20778637]
[1747887659891,5.66027056,176.67,176.63,14.20778637]
[1747887660499,14.20778637,176.66,176.61,14.20778637]
[1747887660695,19.86805693,176.67,176.61,14.20778637]
[1747887660874,5.66003334,176.68,176.64,14.20778637]
[1747887661074,33.96,176.69,176.67,14.20778637]
[1747887661278,33.96,176.69,176.65,14.20778637]
[1747887661484,39.61969387,176.69,176.65,14.20778637]
[1747887661783,53.82613526,176.73,176.68,14.20778637]
[1747887662111,53.82613526,176.73,176.65,5.66077643]
[1747887662112,39.61834889,176.73,176.69,14.20778637]
[1747887662271,14.20778637,176.72,176.67,14.20778637]
[1747887662477,14.20778637,176.7,176.6,5.66245033]
[1747887662687,14.20778637,176.68,176.63,40.20778637]
[1747887662903,14.20778637,176.68,176.63,14.20778637]
[1747887663105,14.20778637,176.67,176.62,14.20778637]
[1747887663312,14.20778637,176.66,176.61,14.20778637]
[1747887663607,14.20778637,176.65,176.57,6.3743]
[1747887663777,22.41137265,176.65,176.59,22.41137265]
[1747887664103,28.07260453,176.64,176.59,22.41137265]
[1747887664400,22.41137265,176.61,176.55,22.41137265]
[1747887664585,22.41137265,176.62,176.57,22.41137265]
[1747887665400,33.96,176.63,176.53,2.95243476]
[1747887665401,5.66251415,176.6,176.56,22.41137265]
[1747887665604,22.41137265,176.61,176.56,22.41137265]
[1747887665906,46.72289445,176.62,176.57,22.41137265]
[1747887666076,24.3115218,176.62,176.57,22.41137265]
[1747887666686,46.72289445,176.62,176.57,22.41137265]
[1747887666911,5.66187294,176.62,176.58,22.41137265]
[1747887667206,28.07324559,176.62,176.57,22.41137265]
[1747887667790,22.41137265,176.63,176.58,22.41137265]
[1747887668106,56.37137265,176.63,176.58,22.41137265]
[1747887668311,41.06102151,176.62,176.55,26.0]
[1747887668611,22.41137265,176.61,176.55,22.41137265]
[1747887668787,5.66251415,176.6,176.55,22.41137265]
[1747887669194,5.66251415,176.6,176.48,6.0939]
[1747887669195,22.41137265,176.58,176.48,6.0939]
[1747887669395,33.96,176.58,176.54,22.41137265]
[1747887670102,56.37137265,176.58,176.53,22.41137265]
[1747887670305,56.37137265,176.58,176.52,22.41137265]
[1747887670501,56.37137265,176.58,176.5,26.0]
[1747887670502,22.41137265,176.56,176.51,22.41137265]
[1747887670885,5.66411781,176.55,176.51,22.41137265]
[1747887671086,5.66411781,176.55,176.48,11.76025506]
[1747887671307,5.66411781,176.55,176.49,22.41137265]
[1747887671308,28.07549046,176.55,176.49,22.41137265]
[1747887671510,28.07549046,176.55,176.5,22.41137265]
[1747887671708,22.41137265,176.54,176.49,22.41137265]
[1747887672422,41.06102151,176.53,176.44,6.0282]
[1747887672632,41.06102151,176.53,176.43,7.32356276]
[1747887672633,22.41137265,176.51,176.45,22.41137265]
[1747887672798,22.41137265,176.51,176.43,22.41137265]
[1747887672799,22.41137265,176.49,176.43,22.41137265]
[1747887673116,22.41137265,176.49,176.4,14.19323726]
[1747887673117,5.66636446,176.48,176.44,22.41137265]
[1747887673301,5.66636446,176.48,176.41,28.9521827]
[1747887673491,5.66636446,176.48,176.44,22.41137265]
[1747887674218,5.66636446,176.48,176.41,8.62069354]
[1747887674411,5.66636446,176.48,176.44,22.41137265]
[1747887674723,28.07773711,176.48,176.43,22.41137265]
[1747887674896,28.07773711,176.48,176.42,22.41137265]
[1747887675220,33.98,176.48,176.43,22.41137265]
[1747887675516,33.98,176.48,176.44,22.41137265]
[1747887676317,62.0577634,176.48,176.43,22.41137265]
[1747887676821,18.64964886,176.47,176.4,22.41137265]
[1747887677119,22.41137265,176.45,176.4,22.41137265]
[1747887677299,22.41137265,176.44,176.39,22.41137265]
[1747887678202,5.66797029,176.43,176.39,22.41137265]
[1747887679022,22.41137265,176.41,176.35,22.41137265]
[1747887679227,22.41137265,176.4,176.35,22.41137265]
[1747887679526,22.41137265,176.39,176.31,4.5511718]
[1747887679730,22.41137265,176.39,176.34,22.41137265]
[1747887679894,22.41137265,176.38,176.33,22.41137265]
[1747887680101,56.39137265,176.38,176.33,22.41137265]
[1747887680298,22.41137265,176.36,176.31,22.41137265]
[1747887680721,28.08127115,176.37,176.32,22.41137265]
[1747887680899,22.41137265,176.36,176.31,22.41137265]
[1747887681822,5.67054153,176.35,176.31,22.41137265]
[1747887682230,33.98,176.38,176.34,22.41137265]
[1747887683128,39.64961876,176.38,176.31,26.0]
[1747887683427,22.41137265,176.36,176.27,8.62708298]
[1747887683627,22.41137265,176.36,176.31,22.41137265]
[1747887684008,5.67054153,176.35,176.32,22.41137265]
[1747887684197,62.0612075,176.38,176.32,22.41137265]
[1747887684398,62.0612075,176.38,176.33,22.41137265]
[1747887684617,39.64983485,176.38,176.34,22.41137265]
[1747887685022,62.0612075,176.38,176.3,31.67204213]
[1747887685201,62.0612075,176.38,176.33,22.41137265]
[1747887685799,22.41137265,176.37,176.32,22.41137265]
[1747887686012,5.67022,176.36,176.32,22.41137265]
[1747887686225,5.66994779,176.37,176.33,22.41137265]
[1747887686607,7.9161,176.43,176.33,26.0]
[1747887686809,5.66829157,176.42,176.39,22.41137265]
[1747887687012,39.66802223,176.43,176.37,26.0]
[1747887687233,62.07939488,176.43,176.38,22.41137265]
[1747887687438,39.66802223,176.43,176.39,22.41137265]
[1747887688131,34.0,176.43,176.41,22.41137265]
[1747887688627,39.66801098,176.43,176.4,22.41137265]
[1747887688928,39.66801098,176.43,176.39,22.41137265]
[1747887689130,39.66801098,176.43,176.37,26.0]
[1747887689131,34.0,176.43,176.41,22.41137265]
[1747887689334,45.18,176.46,176.42,22.41137265]
[1747887689631,34.02,176.47,176.45,22.41137265]
[1747887689830,5.66609585,176.49,176.46,22.41137265]
[1747887690019,5.66572237,176.5,176.46,22.41137265]
[1747887692131,39.68542895,176.51,176.42,26.0]
[1747887692434,39.68542895,176.51,176.47,22.41137265]
[1747887692632,39.68542895,176.51,176.36,14.17523178]
[1747887692633,22.41137265,176.49,176.36,14.17523178]
[1747887692830,22.41137265,176.48,176.38,26.0]
[1747887693136,22.41137265,176.47,176.41,22.41137265]
[1747887693510,22.41137265,176.46,176.36,0.14216157]
[1747887693804,56.41137265,176.46,176.38,26.0]
[1747887694016,56.41137265,176.46,176.41,22.41137265]
[1747887694217,5.66732785,176.45,176.41,22.41137265]
[1747887696124,5.66732785,176.45,176.37,26.0]
[1747887696337,5.66732785,176.45,176.42,22.41137265]
[1747887696638,159.31137265,176.54,176.44,22.41137265]
[1747887696639,34.0,176.49,176.44,22.41137265]
[1747887696833,34.0,176.49,176.46,22.41137265]
[1747887697837,5.66636446,176.48,176.47,22.41137265]
[1747887698413,5.66636446,176.48,176.46,22.41137265]
[1747887698614,5.66636446,176.48,176.45,22.41137265]
[1747887699939,39.66606241,176.49,176.46,22.41137265]
[1747887700151,34.0,176.49,176.47,22.41137265]
[1747887700343,34.0,176.49,176.48,22.41137265]
[1747887700749,39.6660434,176.49,176.47,22.41137265]
[1747887701043,39.6660434,176.49,176.46,22.41137265]
[1747887701243,5.6660434,176.49,176.46,22.41137265]
[1747887702160,39.66578759,176.5,176.48,22.41137265]
[1747887702323,34.0,176.5,176.49,22.41137265]
[1747887702730,5.66565379,176.51,176.48,22.41137265]
[1747887703248,22.41137265,176.5,176.45,48.41137265]
[1747887703764,5.66565379,176.51,176.47,22.41137265]
[1747887704054,28.07702644,176.51,176.45,26.0]
[1747887704255,28.07702644,176.51,176.46,22.41137265]
[1747887704426,5.66565379,176.51,176.47,22.41137265]
[1747887704824,28.07702644,176.51,176.46,22.41137265]
[1747887705524,22.41137265,176.5,176.45,48.41137265]
[1747887705726,42.24052992,176.51,176.46,22.41137265]
[1747887706074,18.64964886,176.5,176.41,26.0]
[1747887706244,53.8311519,176.49,176.42,22.41137265]
[1747887706460,22.41137265,176.47,176.42,22.41137265]
[1747887706771,76.24252455,176.49,176.44,22.41137265]
[1747887707056,39.6660434,176.49,176.45,22.41137265]
[1747887707233,22.41137265,176.48,176.43,22.41137265]
[1747887707437,53.8311519,176.49,176.44,22.41137265]
[1747887707654,76.24252455,176.49,176.44,22.41137265]
[1747887708429,22.41137265,176.48,176.43,22.41137265]
[1747887709828,5.66668555,176.47,176.43,22.41137265]
[1747887712062,5.6664144,176.48,176.44,22.41137265]
[1747887712234,39.6664144,176.48,176.45,22.41137265]
[1747887712435,39.6664144,176.48,176.46,22.41137265]
[1747887712632,34.0,176.48,176.47,22.41137265]
[1747887712970,22.41137265,176.5,176.45,22.41137265]
[1747887713262,22.41137265,176.46,176.41,26.0]
[1747887713431,56.41137265,176.46,176.41,26.0]
[1747887714041,5.66732785,176.45,176.41,26.0]
[1747887714427,5.66732785,176.45,176.42,22.41137265]
[1747887715865,19.83564748,176.45,176.41,48.41137265]
[1747887716063,42.24702013,176.45,176.41,26.0]
[1747887716773,5.66732785,176.45,176.41,48.41137265]
[1747887716959,5.66732785,176.45,176.43,22.41137265]
[1747887717555,28.0787005,176.45,176.41,26.0]
[1747887718250,42.24702013,176.45,176.41,26.0]
[1747887718970,5.66732785,176.45,176.41,48.41137265]
[1747887719175,5.66732785,176.45,176.42,22.41137265]
[1747887719676,5.66732785,176.45,176.43,22.41137265]
[1747887719883,5.66732785,176.45,176.42,22.41137265]
[1747887720277,5.66732785,176.45,176.43,22.41137265]
[1747887720867,39.6670915,176.46,176.43,22.41137265]
[1747887721103,39.6670915,176.46,176.44,22.41137265]
[1747887721580,39.6670915,176.46,176.43,22.41137265]
[1747887723153,39.6670915,176.46,176.42,22.41137265]
[1747887723355,62.07846415,176.46,176.41,48.41137265]
[1747887723681,39.6670915,176.46,176.42,22.41137265]
[1747887725488,18.64964886,176.51,176.41,26.0]
[1747887725489,5.6660434,176.49,176.45,22.41137265]
[1747887725782,5.6660434,176.49,176.48,22.41137265]
[1747887727182,5.66540139,176.51,176.48,22.41137265]
[1747887727391,39.66540139,176.51,176.42,6.3132]
[1747887727681,53.82890487,176.51,176.46,22.41137265]
[1747887727894,22.41137265,176.49,176.42,26.0]
[1747887728185,22.41137265,176.48,176.43,22.41137265]
[1747887728362,34.0,176.47,176.43,22.41137265]
[1747887728565,34.0,176.47,176.44,22.41137265]
[1747887728787,5.66700668,176.46,176.44,22.41137265]
[1747887729166,5.66700668,176.46,176.43,22.41137265]
[1747887729480,19.83452339,176.46,176.42,22.41137265]
[1747887731991,42.24589604,176.46,176.41,48.41137265]
[1747887732199,22.41137265,176.44,176.39,22.41137265]
[1747887732371,22.41137265,176.41,176.34,6.1342]
[1747887732562,22.41137265,176.39,176.33,1.5928]
[1747887732767,56.41137265,176.39,176.34,26.0]
[1747887733090,5.66957704,176.38,176.34,26.0]
[1747887733291,28.08094969,176.38,176.34,26.0]
[1747887733494,22.41137265,176.36,176.32,7.95013726]
[1747887733694,22.41137265,176.33,176.32,7.95013726]
[1747887734194,22.41137265,176.33,176.28,22.41137265]
[1747887735067,5.67150635,176.32,176.28,22.41137265]
[1747887735600,5.67150635,176.32,176.27,26.0]
[1747887735601,56.41137265,176.35,176.3,22.41137265]
[1747887735766,56.41137265,176.35,176.32,22.41137265]
[1747887735767,34.0,176.35,176.32,22.41137265]
[1747887736278,34.0,176.35,176.28,5.67277856]
[1747887736279,34.0,176.35,176.33,22.41137265]
[1747887736471,18.64964886,176.43,176.36,26.0]
[1747887736670,34.0,176.41,176.38,22.41137265]
[1747887737298,39.66870758,176.41,176.37,22.41137265]
[1747887737592,62.08008023,176.41,176.32,7.672]
[1747887737793,22.41137265,176.4,176.35,48.41137265]
[1747887738471,62.08008023,176.41,176.36,22.41137265]
[1747887739177,22.41137265,176.4,176.35,48.41137265]
[1747887739378,22.41137265,176.39,176.34,22.41137265]
[1747887739869,62.08008023,176.41,176.36,22.41137265]
[1747887740496,39.66870758,176.41,176.37,22.41137265]
[1747887740791,62.08008023,176.41,176.36,22.41137265]
[1747887740994,62.08008023,176.41,176.35,22.41137265]
[1747887741588,62.08008023,176.41,176.36,22.41137265]
[1747887741791,39.66870758,176.41,176.36,22.41137265]
[1747887741987,34.0,176.41,176.38,22.41137265]
[1747887742295,39.66869786,176.41,176.37,22.41137265]
[1747887742502,39.66869786,176.41,176.36,48.41137265]
[1747887743205,62.08007051,176.41,176.35,22.41137265]
[1747887743496,39.66869786,176.41,176.36,22.41137265]
[1747887743674,34.0,176.41,176.38,22.41137265]
[1747887744075,34.0,176.41,176.39,22.41137265]
[1747887744282,136.9,176.42,176.34,26.0]
[1747887744283,164.97966912,176.42,176.36,22.41137265]
[1747887744599,22.41137265,176.4,176.34,26.0]
[1747887744788,56.43137265,176.39,176.34,48.41137265]
[1747887745498,62.10091291,176.39,176.34,48.41137265]
[1747887746295,39.68954026,176.39,176.35,48.41137265]
[1747887748613,39.68954026,176.39,176.36,22.41137265]
[1747887750301,39.68954026,176.39,176.35,26.0]
[1747887750500,39.68954026,176.39,176.36,22.41137265]
[1747887750693,5.66892633,176.41,176.37,22.41137265]
[1747887750893,58.80156948,176.48,176.35,26.0]
[1747887750894,136.9,176.46,176.4,22.41137265]
[1747887751121,136.9,176.46,176.45,22.41137265]
[1747887751394,5.66608968,176.49,176.45,22.41137265]
[1747887751602,136.9,176.5,176.48,22.41137265]
[1747887751902,5.66508044,176.52,176.48,22.41137265]
[1747887752104,39.68556433,176.51,176.48,22.41137265]
[1747887752485,34.02,176.51,176.48,22.41137265]
[1747887752803,39.68543786,176.51,176.48,22.41137265]
[1747887752994,62.09681051,176.51,176.46,22.41137265]
[1747887753192,62.09681051,176.51,176.44,26.0]
[1747887753504,39.68543786,176.51,176.47,22.41137265]
[1747887754304,39.68543786,176.51,176.48,22.41137265]
[1747887755411,5.66510389,176.52,176.48,22.41137265]
[1747887755612,39.66510389,176.52,176.48,22.41137265]
[1747887755999,62.07647654,176.52,176.47,22.41137265]
[1747887757010,178.10318308,176.51,176.37,5.6698985]
[1747887757215,22.41137265,176.47,176.37,5.6698985]
[1747887757503,34.0,176.46,176.42,22.41137265]
[1747887757899,39.66712423,176.46,176.42,22.41137265]
[1747887758208,34.0,176.46,176.45,22.41137265]
[1747887758398,34.0,176.5,176.45,22.41137265]
[1747887758656,34.0,176.5,176.44,26.0]
[1747887758815,34.0,176.5,176.48,22.41137265]
[1747887759111,34.0,176.52,176.49,22.41137265]
[1747887759284,34.0,176.52,176.47,26.0]
[1747887759285,34.0,176.53,176.5,22.41137265]
[1747887759492,39.66482693,176.53,176.5,22.41137265]
[1747887759893,22.41137265,176.52,176.44,1.6614]
[1747887760100,22.41137265,176.48,176.43,26.0]
[1747887760410,56.41137265,176.49,176.43,48.41137265]
[1747887760712,34.0,176.49,176.45,22.41137265]
[1747887761019,34.0,176.49,176.46,22.41137265]
[1747887761514,5.66636446,176.48,176.45,22.41137265]
[1747887762924,5.66636446,176.48,176.44,22.41137265]
[1747887763615,5.66636446,176.48,176.43,26.0]
[1747887763943,34.0,176.5,176.47,22.41137265]
[1747887764092,34.0,176.5,176.45,22.41137265]
[1747887764293,5.66540139,176.51,176.46,22.41137265]
[1747887764506,34.0,176.5,176.46,22.41137265]
[1747887765800,5.6660434,176.49,176.46,22.41137265]
[1747887766391,66.71137265,176.52,176.47,22.41137265]
[1747887766597,34.0,176.51,176.47,22.41137265]
[1747887767216,34.0,176.51,176.49,22.41137265]
[1747887767522,34.0,176.51,176.5,22.41137265]
[1747887768090,39.66540139,176.51,176.44,26.0]
[1747887768331,62.07677404,176.51,176.45,48.41137265]
[1747887768708,198.97677404,176.51,176.45,48.41137265]
[1747887768897,198.97677404,176.51,176.46,22.41137265]
[1747887769322,198.97677404,176.51,176.44,26.0]
[1747887769525,198.97677404,176.51,176.46,22.41137265]
[1747887769837,198.97677404,176.51,176.45,22.41137265]
[1747887770201,198.97677404,176.51,176.4,8.1168]
[1747887770202,22.41137265,176.48,176.4,8.1168]
[1747887770408,34.0,176.47,176.41,22.41137265]
[1747887770705,34.0,176.46,176.44,22.41137265]
[1747887771337,34.0,176.46,176.43,22.41137265]
[1747887771711,34.0,176.46,176.42,22.41137265]
[1747887771905,34.0,176.46,176.43,22.41137265]
[1747887773533,34.0,176.46,176.44,22.41137265]
[1747887773824,39.6660434,176.49,176.45,22.41137265]
[1747887774219,34.0,176.49,176.46,22.41137265]
[1747887774820,56.41137265,176.49,176.43,26.0]
[1747887775012,22.41137265,176.48,176.43,48.41137265]
[1747887775216,22.41137265,176.48,176.43,26.0]
[1747887775624,22.41137265,176.48,176.43,48.41137265]
[1747887775625,5.66668555,176.47,176.43,48.41137265]
[1747887775823,5.66668555,176.47,176.43,26.0]
[1747887776724,28.0780582,176.47,176.42,22.41137265]
[1747887777231,5.66668555,176.47,176.43,22.41137265]
[1747887778134,28.0780582,176.47,176.42,22.41137265]
[1747887779624,5.66668555,176.47,176.43,22.41137265]
[1747887780032,28.0780582,176.47,176.42,22.41137265]
[1747887780217,42.24477208,176.47,176.41,22.41137265]
[1747887780539,22.41137265,176.44,176.36,1.5431]
[1747887780713,56.41137265,176.44,176.39,22.41137265]
[1747887780907,34.0,176.44,176.39,22.41137265]
[1747887781108,34.0,176.44,176.39,48.41137265]
[1747887781509,22.41137265,176.42,176.36,22.41137265]
[1747887781731,22.41137265,176.42,176.37,26.0]
[1747887781928,5.66797029,176.43,176.37,22.41137265]
[1747887782108,28.07934294,176.43,176.37,22.41137265]
[1747887782723,42.24926868,176.43,176.38,22.41137265]
[1747887783103,19.83789603,176.43,176.38,22.41137265]
[1747887783335,42.24926868,176.43,176.38,22.41137265]
[1747887784909,28.07934294,176.43,176.38,22.41137265]
[1747887786439,5.66861289,176.41,176.37,48.41137265]
[1747887787138,5.66861289,176.41,176.37,26.0]
[1747887787444,5.66861289,176.41,176.34,22.41137265]
[1747887787445,22.41137265,176.39,176.34,22.41137265]
[1747887787634,22.41137265,176.38,176.34,26.0]
[1747887788339,34.0,176.4,176.32,22.41137265]